fUST/lending_fUST_20240124
["ID","MTS","AMOUNT","RATE_DAILY","PERIOD"]
[312581596,1706026002097,-675.23533782,0.00020436,2]
[312581597,1706026002117,-154.87609912,0.00020437,4]
[312581598,1706026002138,-2709.69212169,0.00020437,5]
[312581599,1706026002157,-1177.75088536,0.00020459,2]
[312581600,1706026002176,-3652.88390148,0.000205,2]
[312581601,1706026055863,-500000.0,0.00043168,7]
[312581602,1706026067540,-8101.0516638,0.00043168,7]
[312581603,1706026067565,-122165.72480519,0.00043168,7]
[312581604,1706026067687,-224882.88725129,0.00043168,7]
[312581605,1706026067711,-144850.33627972,0.00043168,7]
[312581606,1706026074732,-7403.47038403,0.00043168,30]
[312581607,1706026074769,-710.47,0.00043168,120]
[312581608,1706026074807,-500.0,0.00043168,120]
[312581609,1706026074841,-169.3349536,0.00043168,15]
[312581610,1706026074875,-1179.9941026,0.00043168,14]
[312581611,1706026074907,-522.68004594,0.00043168,120]
[312581612,1706026074943,-222.46949439,0.00043168,10]
[312581613,1706026074978,-578.91811507,0.00043168,120]
[312581614,1706026075017,-455.86192806,0.00043168,120]
[312581615,1706026075048,-251.48004793,0.00043168,30]
[312581616,1706026075079,-220.10710182,0.00043168,120]
[312581617,1706026075111,-1194.10913622,0.00043168,120]
[312581618,1706026075141,-1010.16555238,0.00043168,10]
[312581619,1706026075170,-804.94888482,0.00043168,14]
[312581620,1706026075199,-500.0,0.00043168,14]
[312581621,1706026075228,-151.0456968,0.00043168,30]
[312581622,1706026075257,-314.0156607,0.00043168,120]
[312581623,1706026075288,-549.98539538,0.00043168,30]
[312581624,1706026075321,-500.0,0.00043168,120]
[312581625,1706026075354,-200.962535,0.00043168,30]
[312581793,1706026238907,-154.87609912,0.00018447,3]
[312581795,1706026238916,-351.79761101,0.00018448,2]
[312581797,1706026238926,-1252.05296858,0.00020499,5]
[312581799,1706026238935,-8444.12284417,0.000205,2]
[312581801,1706026238946,-2537.72305971,0.000205,2]
[312581804,1706026238957,-1138.492502,0.000205,2]
[312581806,1706026238969,-4977.62132998,0.000205,2]
[312581808,1706026238980,-16219.55825878,0.000205,2]
[312581810,1706026238988,-24900.0,0.00020501,2]
[312581812,1706026238999,-3636.17440138,0.00021823,2]
[312581814,1706026239008,-257.25121599,0.00021823,2]
[312581816,1706026239018,-571.31512848,0.00021823,2]
[312581818,1706026239028,-166.666666,0.00021918,2]
[312581820,1706026239037,-293.49920597,0.00022,4]
[312581822,1706026239046,-3969.08835529,0.00022,2]
[312581824,1706026239056,-426.05744554,0.00022,2]
[312581826,1706026239066,-166.666666,0.00022431,2]
[312581828,1706026239075,-166.666666,0.00022944,2]
[312581830,1706026239085,-166.666666,0.00023456,2]
[312581832,1706026239094,-166.666666,0.00023969,2]
[312581834,1706026239103,-166.666666,0.00024482,2]
[312581836,1706026239113,-7382.89018777,0.00025,2]
[312581838,1706026239123,-4724.32599377,0.00025,2]
[312581840,1706026239132,-1415.52295142,0.00025994,2]
[312581842,1706026239141,-241.30981003,0.00026,2]
[312581844,1706026239150,-153.00487781,0.00027612,2]
[312581846,1706026239160,-170.039581,0.00027612,2]
[312581848,1706026239169,-315.83907199,0.00027612,2]
[312581850,1706026239178,-700.0,0.00027612,2]
[312581852,1706026239187,-1620.63270875,0.00029,2]
[312581854,1706026239197,-2371.7284246,0.0003,2]
[312581856,1706026239207,-157.894736,0.00030137,2]
[312581858,1706026239217,-9292.0821027,0.00030137,2]
[312581860,1706026239226,-157.894736,0.00030746,2]
[312581862,1706026239237,-161.27546576,0.00031,4]
[312581865,1706026239248,-154.90705577,0.00031,4]
[312581866,1706026239258,-157.894736,0.00031355,2]
[312581869,1706026239268,-199.2396578,0.00031678,2]
[312581870,1706026239277,-153.0,0.00031678,2]
[312581872,1706026239286,-153.0,0.00031678,2]
[312581875,1706026239296,-153.0,0.00031678,2]
[312581876,1706026239305,-199.2396578,0.00031678,2]
[312581878,1706026239314,-153.0,0.00031678,2]
[312581881,1706026239324,-199.2396578,0.00031678,2]
[312581882,1706026239333,-153.0,0.00031678,2]
[312581884,1706026239342,-199.2396578,0.00031678,2]
[312581886,1706026239352,-199.2396578,0.00031678,2]
[312581888,1706026239361,-195.2607503,0.00031678,2]
[312581891,1706026239370,-157.894736,0.00031963,2]
[312581892,1706026239379,-154.90705577,0.00032,4]
[312581894,1706026239388,-157.894736,0.00032572,2]
[312581896,1706026239397,-157.894736,0.00033181,2]
[312581898,1706026239406,-331.45361269,0.000334,2]
[312581900,1706026239415,-157.894736,0.0003379,2]
[312581902,1706026239424,-409.7445274,0.00034178,2]
[312581904,1706026239435,-157.894736,0.00034399,2]
[312581907,1706026239447,-615.46034166,0.00035,7]
[312581908,1706026239456,-845.93057289,0.00035,2]
[312581910,1706026239465,-1117.11167906,0.00035,7]
[312581913,1706026239475,-2086.84800856,0.00035,4]
[312581915,1706026239484,-154.90705577,0.00035,4]
[312581916,1706026239495,-2059.64630298,0.00035,4]
[312581918,1706026239504,-7758.29993079,0.00035,4]
[312582063,1706026241346,-705.39713821,0.00035,4]
[312582065,1706026241358,-734.74690286,0.00035,4]
[312582067,1706026241369,-337.9282658,0.00035,4]
[312582069,1706026241381,-1626.39628322,0.00035,4]
[312582071,1706026241390,-1510.068886,0.00035,7]
[312582073,1706026241400,-157.894736,0.00035008,2]
[312582075,1706026241410,-150.1,0.00035357,2]
[312582077,1706026241420,-9463.92,0.0003548,3]
[312582079,1706026241429,-7886.6,0.0003548,3]
[312582081,1706026241438,-11356.7,0.0003549,3]
[312582083,1706026241448,-30213.0186402,0.000355,14]
[312582085,1706026241457,-157.894736,0.00035616,2]
[312582087,1706026241466,-174.303398,0.00035616,120]
[312582089,1706026241476,-275.09,0.000359,4]
[312582090,1706026241485,-221.44676153,0.00035901,4]
[312582092,1706026241494,-5000.0,0.00036109,7]
[312582094,1706026241504,-5000.0,0.00036109,7]
[312582096,1706026241513,-157.894736,0.00036225,2]
[312582098,1706026241523,-202.91048459,0.00036693,7]
[312582100,1706026241532,-157.894736,0.00036834,2]
[312582102,1706026241541,-150.0,0.00037,30]
[312582104,1706026241550,-2004.94247711,0.00037,4]
[312582106,1706026241559,-150.0,0.000372,30]
[312582108,1706026241568,-150.0,0.000374,30]
[312582110,1706026241577,-157.894736,0.00037443,2]
[312582112,1706026241586,-150.0,0.000376,30]
[312582114,1706026241596,-150.0,0.000378,30]
[312582115,1706026241607,-29074.27777655,0.00037897,2]
[312582117,1706026241616,-325.5328152,0.00037992,4]
[312582119,1706026241626,-448.79123991,0.00037995,14]
[312582122,1706026241635,-324.50498143,0.00037996,4]
[312582123,1706026241646,-2100.17549706,0.00037996,4]
[312582125,1706026241656,-558.02030291,0.00037996,4]
[312582127,1706026241666,-778.71375254,0.00037997,4]
[312582129,1706026241675,-151.0,0.00037999,2]
[312582131,1706026241685,-151.0,0.00037999,2]
[312582133,1706026241694,-151.0,0.00037999,2]
[312582135,1706026241703,-151.0,0.00037999,2]
[312582137,1706026241712,-1731.298064,0.00037999,2]
[312582139,1706026241721,-1731.298064,0.00037999,2]
[312582141,1706026241731,-1731.298064,0.00037999,2]
[312582143,1706026241740,-1731.298064,0.00037999,2]
[312582145,1706026241750,-151.0,0.00037999,2]
[312582147,1706026241760,-173.15813,0.00037999,2]
[312582149,1706026241769,-582.049296,0.00037999,2]
[312582151,1706026241778,-582.049296,0.00037999,2]
[312582153,1706026241787,-582.049296,0.00037999,2]
[312582155,1706026241796,-582.049296,0.00037999,2]
[312582157,1706026241806,-151.0,0.00037999,2]
[312582159,1706026241816,-151.0,0.00037999,2]
[312582161,1706026241824,-151.0,0.00037999,2]
[312582163,1706026241833,-151.0,0.00037999,2]
[312582165,1706026241843,-1105.823605,0.00037999,2]
[312582167,1706026241852,-1105.823605,0.00037999,2]
[312582169,1706026241861,-1105.823605,0.00037999,2]
[312582171,1706026241871,-1105.823605,0.00037999,2]
[312582173,1706026241881,-1200.0,0.00037999,4]
[312582175,1706026241890,-1576.08215095,0.00037999,15]
[312582177,1706026241899,-298.82422574,0.00037999,15]
[312582179,1706026241908,-500.0,0.00037999,15]
[312582181,1706026241917,-500.0,0.00037999,15]
[312582183,1706026241926,-500.0,0.00037999,15]
[312582185,1706026241938,-500.0,0.00037999,15]
[312582186,1706026241948,-490.2054202,0.00037999,15]
[312582188,1706026241957,-500.0,0.00037999,15]
[312582191,1706026241968,-500.0,0.00037999,15]
[312582192,1706026241977,-500.0,0.00037999,15]
[312582194,1706026241986,-500.0,0.00037999,15]
[312582196,1706026241996,-500.0,0.00037999,15]
[312582198,1706026242004,-500.0,0.00037999,15]
[312582200,1706026242014,-500.0,0.00037999,15]
[312582202,1706026242023,-500.0,0.00037999,15]
[312582203,1706026242032,-500.0,0.00037999,15]
[312582204,1706026242041,-500.0,0.00037999,15]
[312582205,1706026242050,-500.0,0.00037999,15]
[312582206,1706026242058,-500.0,0.00037999,15]
[312582207,1706026242068,-500.0,0.00037999,15]
[312582208,1706026242077,-500.0,0.00037999,15]
[312582209,1706026242086,-500.0,0.00037999,15]
[312582210,1706026242095,-500.0,0.00037999,15]
[312582211,1706026242104,-500.0,0.00037999,15]
[312582212,1706026242112,-500.0,0.00037999,15]
[312582213,1706026242121,-500.0,0.00037999,15]
[312582214,1706026242130,-500.0,0.00037999,15]
[312582215,1706026242140,-500.0,0.00037999,15]
[312582216,1706026242149,-500.0,0.00037999,15]
[312582217,1706026242158,-500.0,0.00037999,15]
[312582218,1706026242167,-500.0,0.00037999,15]
[312582219,1706026242175,-281.34242766,0.00037999,15]
[312582220,1706026242184,-500.0,0.00037999,15]
[312582221,1706026242193,-500.0,0.00037999,15]
[312582222,1706026242202,-500.0,0.00037999,15]
[312582223,1706026242212,-500.0,0.00037999,15]
[312582224,1706026242221,-500.0,0.00037999,15]
[312582225,1706026242230,-500.0,0.00037999,15]
[312582226,1706026242239,-500.0,0.00037999,15]
[312582227,1706026242249,-500.0,0.00037999,15]
[312582228,1706026242258,-500.0,0.00037999,15]
[312582229,1706026242267,-500.0,0.00037999,15]
[312582230,1706026242276,-500.0,0.00037999,15]
[312582231,1706026242285,-500.0,0.00037999,15]
[312582232,1706026242295,-500.0,0.00037999,15]
[312582233,1706026242304,-500.0,0.00037999,15]
[312582234,1706026242313,-500.0,0.00037999,15]
[312582235,1706026242322,-500.0,0.00037999,15]
[312582236,1706026242331,-500.0,0.00037999,15]
[312582237,1706026242340,-500.0,0.00037999,15]
[312582238,1706026242349,-500.0,0.00037999,15]
[312582239,1706026242358,-500.0,0.00037999,15]
[312582240,1706026242367,-500.0,0.00037999,15]
[312582241,1706026242377,-500.0,0.00037999,15]
[312582242,1706026242386,-500.0,0.00037999,15]
[312582243,1706026242395,-500.0,0.00037999,15]
[312582244,1706026242403,-500.0,0.00037999,15]
[312582245,1706026242412,-154.26530491,0.00037999,15]
[312582246,1706026242422,-500.0,0.00037999,15]
[312582247,1706026242431,-500.0,0.00037999,15]
[312582248,1706026242440,-500.0,0.00037999,15]
[312582249,1706026242449,-500.0,0.00037999,15]
[312582250,1706026242459,-500.0,0.00037999,15]
[312582251,1706026242469,-500.0,0.00037999,15]
[312582252,1706026242478,-500.0,0.00037999,15]
[312582253,1706026242488,-500.0,0.00037999,15]
[312582254,1706026242498,-500.0,0.00037999,15]
[312582255,1706026242507,-500.0,0.00037999,15]
[312582256,1706026242516,-500.0,0.00037999,15]
[312582257,1706026242526,-500.0,0.00037999,15]
[312582258,1706026242535,-500.0,0.00037999,15]
[312582259,1706026242545,-500.00000004,0.00037999,15]
[312582260,1706026242554,-500.0,0.00037999,15]
[312582261,1706026242563,-500.0,0.00037999,15]
[312582262,1706026242584,-500.0,0.00037999,15]
[312582266,1706026242737,-500.0,0.00037999,15]
[312582267,1706026242748,-500.0,0.00037999,15]
[312582268,1706026242758,-500.0,0.00037999,15]
[312582270,1706026242767,-500.0,0.00037999,15]
[312582272,1706026242776,-500.0,0.00037999,15]
[312582274,1706026242785,-500.0,0.00037999,15]
[312582275,1706026242794,-500.0,0.00037999,15]
[312582276,1706026242804,-500.0,0.00037999,15]
[312582278,1706026242813,-500.0,0.00037999,15]
[312582280,1706026242822,-500.0,0.00037999,15]
[312582282,1706026242831,-500.0,0.00037999,15]
[312582284,1706026242841,-500.0,0.00037999,15]
[312582286,1706026242849,-500.0,0.00037999,15]
[312582288,1706026242859,-500.0,0.00037999,15]
[312582290,1706026242868,-500.0,0.00037999,15]
[312582293,1706026242879,-500.0,0.00037999,15]
[312582295,1706026242889,-500.0,0.00037999,15]
[312582297,1706026242899,-500.0,0.00037999,15]
[312582299,1706026242909,-500.0,0.00037999,15]
[312582301,1706026242919,-500.0,0.00037999,15]
[312582303,1706026242927,-500.0,0.00037999,15]
[312582305,1706026242936,-500.0,0.00037999,15]
[312582307,1706026242945,-500.0,0.00037999,15]
[312582309,1706026242954,-500.0,0.00037999,15]
[312582311,1706026242962,-500.0,0.00037999,15]
[312582312,1706026242971,-500.0,0.00037999,15]
[312582314,1706026242981,-500.0,0.00037999,15]
[312582316,1706026242991,-500.0,0.00037999,15]
[312582320,1706026243001,-520.12881753,0.00037999,15]
[312582323,1706026243011,-500.0,0.00037999,15]
[312582324,1706026243020,-500.0,0.00037999,15]
[312582326,1706026243030,-500.0,0.00037999,15]
[312582328,1706026243039,-500.0,0.00037999,15]
[312582331,1706026243048,-500.0,0.00037999,15]
[312582334,1706026243057,-500.0,0.00037999,15]
[312582337,1706026243065,-500.0,0.00037999,15]
[312582340,1706026243075,-500.0,0.00037999,15]
[312582343,1706026243084,-596.00610904,0.00037999,15]
[312582346,1706026243093,-500.0,0.00037999,15]
[312582349,1706026243102,-500.0,0.00037999,15]
[312582351,1706026243111,-500.0,0.00037999,15]
[312582354,1706026243121,-646.44459866,0.00037999,15]
[312582355,1706026243130,-780.53355284,0.00037999,15]
[312582357,1706026243140,-646.44459866,0.00037999,15]
[312582359,1706026243149,-780.53355284,0.00037999,15]
[312582362,1706026243159,-646.44459866,0.00037999,15]
[312582363,1706026243168,-780.53355284,0.00037999,15]
[312582367,1706026243180,-500.0,0.00037999,15]
[312582370,1706026243189,-780.53355284,0.00037999,15]
[312582373,1706026243199,-646.44459866,0.00037999,15]
[312582376,1706026243210,-500.0,0.00037999,15]
[312582378,1706026243220,-780.53355284,0.00037999,15]
[312582382,1706026243231,-646.44459866,0.00037999,15]
[312582385,1706026243242,-500.0,0.00037999,15]
[312582388,1706026243258,-780.53355284,0.00037999,15]
[312582390,1706026243269,-646.44459866,0.00037999,15]
[312582394,1706026243284,-500.0,0.00037999,15]
[312582397,1706026243294,-780.53355284,0.00037999,15]
[312582400,1706026243306,-646.44459866,0.00037999,15]
[312582402,1706026243316,-500.0,0.00037999,15]
[312582405,1706026243327,-780.53355284,0.00037999,15]
[312582410,1706026243338,-500.0,0.00037999,15]
[312582412,1706026243348,-646.44459866,0.00037999,15]
[312582414,1706026243357,-500.0,0.00037999,15]
[312582418,1706026243367,-780.53355284,0.00037999,15]
[312582421,1706026243376,-646.44459866,0.00037999,15]
[312582425,1706026243386,-780.53355284,0.00037999,15]
[312582427,1706026243397,-500.0,0.00037999,15]
[312582430,1706026243407,-646.44459866,0.00037999,15]
[312582431,1706026243417,-780.53355284,0.00037999,15]
[312582435,1706026243428,-500.0,0.00037999,15]
[312582437,1706026243437,-646.44459866,0.00037999,15]
[312582439,1706026243446,-780.53355284,0.00037999,15]
[312582441,1706026243456,-500.0,0.00037999,15]
[312582444,1706026243465,-123.13513066,0.00037999,15]
[312582447,1706026243485,-523.309468,0.00037999,15]
[312582449,1706026243494,-1.05483394,0.00037999,15]
[312582452,1706026243509,-779.4787189,0.00037999,15]
[312582454,1706026243518,-500.0,0.00037999,15]
[312582456,1706026243527,-646.44459866,0.00037999,15]
[312582458,1706026243537,-780.53355284,0.00037999,15]
[312582460,1706026243547,-500.0,0.00037999,15]
[312582461,1706026243556,-646.44459866,0.00037999,15]
[312582463,1706026243565,-780.53355284,0.00037999,15]
[312582466,1706026243575,-390.88028813,0.00037999,15]
[312582477,1706026243687,-6572.17,0.0003547,3]
[312582479,1706026243697,-109.11971187,0.00037999,15]
[312582481,1706026243707,-646.44459866,0.00037999,15]
[312582484,1706026243717,-780.53355284,0.00037999,15]
[312582485,1706026243728,-262.1704821,0.00037999,15]
[312582608,1706026246569,-1691.23124658,0.00037999,2]
[312582682,1706027250091,-154.8915759,0.00020161,4]
[312582683,1706027250113,-351.79761101,0.00020162,2]
[312582684,1706027250135,-154.93802479,0.00020183,2]
[312582685,1706027250156,-24900.0,0.00020561,2]
[312582686,1706027250176,-200.7682893,0.000219,2]
[312582687,1706027250195,-200.76828929,0.000219,2]
[312582688,1706027250215,-166.666666,0.00021918,2]
[312582689,1706027250234,-3969.08835529,0.00022,2]
[312582690,1706027250253,-426.05744554,0.00022158,2]
[312582691,1706027250275,-5130.16531626,0.00022159,2]
[312582692,1706027250298,-256.50826581,0.00022159,2]
[312582693,1706027250317,-166.666666,0.00022431,2]
[312582694,1706027250338,-200.0,0.00022616,7]
[312582695,1706027250357,-166.666666,0.00022944,2]
[312582696,1706027250375,-1415.52295142,0.00023,2]
[312582697,1706027250394,-166.666666,0.00023456,2]
[312582698,1706027250412,-166.666666,0.00023969,2]
[312582699,1706027250432,-166.666666,0.00024482,2]
[312582700,1706027250451,-1955.8947764,0.00025,2]
[312582752,1706027432502,-319.2378707,0.00020708,2]
[312582754,1706027432511,-166.666666,0.00021918,2]
[312582756,1706027432521,-166.666666,0.00022431,2]
[312582758,1706027432530,-166.666666,0.00022944,2]
[312582760,1706027432539,-166.666666,0.00023456,2]
[312582762,1706027432549,-166.666666,0.00023969,2]
[312582764,1706027432558,-166.666666,0.00024482,2]
[312582767,1706027432567,-2575.2163393,0.00024999,2]
[312582776,1706027438517,-426.05744554,0.0002243,2]
[312582777,1706027438527,-1393.87201599,0.00024999,2]
[312582778,1706027438537,-2768.43121737,0.00025,2]
[312582779,1706027438546,-154.8915759,0.00025,2]
[312582780,1706027438555,-300.0,0.00025,2]
[312582781,1706027438564,-638.78323374,0.00025,5]
[312582782,1706027438576,-716.29098202,0.00025,5]
[312582783,1706027438585,-273.57105796,0.00025,2]
[312582784,1706027438689,-1552.71948993,0.00025,2]
[312582785,1706027438698,-7382.89018777,0.00025,2]
[312582786,1706027438708,-524.51390291,0.00027612,2]
[312582787,1706027438718,-1620.63270875,0.00029,2]
[312582788,1706027438727,-154.8915759,0.00029997,4]
[312582789,1706027438737,-2371.7284246,0.00030136,2]
[312582790,1706027438746,-162.6804763,0.00030137,2]
[312582791,1706027438756,-3095.848186,0.00030137,2]
[312582792,1706027438766,-154.8915759,0.00031354,4]
[312582793,1706027438775,-1031.30384648,0.00031355,2]
[312582794,1706027438785,-154.87609912,0.00032299,2]
[312582795,1706027438795,-1901.85425335,0.0003499,4]
[312582797,1706027438804,-472.66473648,0.00034991,4]
[312582798,1706027438814,-154.86062544,0.00034996,4]
[312582800,1706027438823,-615.46034166,0.00035,7]
[312582802,1706027438833,-1117.11167906,0.00035,7]
[312582804,1706027438842,-592.15140102,0.00035,2]
[312582806,1706027438852,-154.8915759,0.00035494,4]
[312582808,1706027438862,-2086.84800856,0.00035494,4]
[312582810,1706027438872,-163.184314,0.00035496,2]
[312582812,1706027438882,-174.303398,0.00035616,120]
[312582815,1706027438892,-261.67,0.000358,10]
[312582816,1706027438902,-5308.35,0.00036088,3]
[312582818,1706027438911,-4423.62,0.00036088,3]
[312582820,1706027438921,-3686.35,0.00036088,3]
[312582822,1706027438932,-6370.02,0.00036089,3]
[312582824,1706027438985,-30295.2398668,0.00036098,4]
[312582826,1706027438995,-12257.85216784,0.00036099,5]
[312582828,1706027439006,-5000.0,0.00036217,7]
[312582831,1706027439017,-150.1,0.00036407,2]
[312582832,1706027439026,-559.56175172,0.00036833,2]
[312582834,1706027439036,-163.184314,0.0003693,2]
[312582837,1706027439046,-150.0,0.00037,30]
[312582838,1706027439055,-150.0,0.000372,30]
[312582840,1706027439065,-155.87334939,0.00037237,4]
[312582842,1706027439074,-150.0,0.000374,30]
[312582843,1706027439084,-150.0,0.000376,30]
[312582844,1706027439094,-82978.42597584,0.00037797,2]
[312582846,1706027439104,-150.0,0.000378,30]
[312582848,1706027439113,-1820.7505544,0.00037988,2]
[312582850,1706027439123,-446.2004025,0.00037997,4]
[312582852,1706027439132,-6388.51314541,0.00037997,14]
[312582854,1706027439141,-297.19036361,0.00037998,4]
[312582856,1706027439151,-276.51778986,0.00037998,4]
[312582857,1706027439160,-1252.05296858,0.00037998,5]
[312582858,1706027439169,-1026.65405285,0.00037999,2]
[312582860,1706027439180,-283.29570516,0.00037999,3]
[312582873,1706027439289,-686.89043895,0.00037999,4]
[312582875,1706027439299,-255.79052155,0.00037999,4]
[312582877,1706027439309,-351.52136299,0.00037999,4]
[312582879,1706027439318,-150.0,0.00038,30]
[312582881,1706027439328,-2140.15624609,0.00038,4]
[312582883,1706027439338,-1017.41,0.00038,6]
[312582885,1706027439347,-16320.61699859,0.00038,4]
[312582887,1706027439356,-285269.94634981,0.00038,10]
[312582889,1706027439365,-500.3547841,0.00038,5]
[312582890,1706027439375,-200.0,0.00038,9]
[312582891,1706027439384,-150.0,0.000382,30]
[312582893,1706027439394,-163.184314,0.00038364,2]
[312582894,1706027439403,-150.0,0.000384,30]
[312582895,1706027439412,-500.0,0.00038419,4]
[312582896,1706027439422,-1000.0,0.00038571,4]
[312582897,1706027439433,-150.0,0.000386,30]
[312582898,1706027439442,-2000.0,0.00038628,4]
[312582899,1706027439452,-150.0,0.000388,30]
[312582900,1706027439461,-280.24948476,0.00039,3]
[312582901,1706027439470,-150.0,0.00039,30]
[312582902,1706027439479,-4830.8535997,0.00039,5]
[312582903,1706027439488,-1000.0,0.00039,39]
[312582904,1706027439497,-750.0,0.00039,7]
[312582905,1706027439506,-150.0,0.000392,30]
[312582906,1706027439516,-199.356478,0.00039213,2]
[312582907,1706027439525,-166.67911,0.00039213,2]
[312582908,1706027439534,-150.0,0.000394,30]
[312582909,1706027439543,-150.0,0.000396,30]
[312582910,1706027439552,-163.184314,0.00039798,2]
[312582911,1706027439562,-150.0,0.000398,30]
[312582912,1706027439571,-10332.77441725,0.000399,2]
[312582913,1706027439580,-205.09619319,0.000399,120]
[312582914,1706027439590,-256.78997943,0.00039919,10]
[312582915,1706027439599,-10387.0061746,0.0003999,4]
[312582916,1706027439608,-150.0,0.0004,30]
[312582917,1706027439618,-154.86062544,0.0004,4]
[312582918,1706027439627,-240.10962563,0.0004,4]
[312582919,1706027439637,-1600.32741429,0.0004,4]
[312582920,1706027439646,-238.67834645,0.0004,4]
[312582921,1706027439656,-290.78068369,0.0004,4]
[312582922,1706027439665,-738.31157613,0.0004,2]
[312582923,1706027439675,-719.64164817,0.0004,2]
[312582924,1706027439685,-157.95324007,0.0004,4]
[312582925,1706027439694,-2718.60561239,0.0004,2]
[312582926,1706027439703,-249.43709843,0.0004,2]
[312582927,1706027439712,-186.47956956,0.0004,4]
[312582928,1706027439722,-300.009564,0.0004,2]
[312582929,1706027439732,-1161.55248136,0.0004,2]
[312582930,1706027439741,-3286.89487013,0.0004,2]
[312582931,1706027439751,-178.65306496,0.0004,120]
[312582932,1706027439760,-1000.0,0.0004,40]
[312582933,1706027439770,-455.4059091,0.0004,10]
[312582934,1706027439779,-202.4741267,0.0004,2]
[312582935,1706027439789,-700.0,0.0004,7]
[312582936,1706027439799,-150.0,0.0004,27]
[312582937,1706027439808,-150.0,0.000402,30]
[312582938,1706027439817,-274.30742242,0.00040201,30]
[312582939,1706027439827,-150.98638473,0.00040219,30]
[312582940,1706027439837,-150.43942455,0.00040246,30]
[312582941,1706027439846,-4000.0,0.000403,5]
[312582942,1706027439855,-274.30742242,0.00040315,30]
[312582943,1706027439874,-274.30742242,0.00040381,30]
[312582944,1706027439884,-150.0,0.000404,30]
[312582945,1706027439893,-274.30742242,0.00040428,30]
[312582946,1706027439902,-274.30742242,0.00040459,30]
[312582947,1706027439912,-151.45185765,0.00040467,30]
[312582948,1706027439922,-151.45185765,0.00040523,30]
[312582949,1706027439933,-151.45185765,0.00040536,30]
[312582950,1706027439942,-274.30742242,0.00040586,30]
[312582951,1706027439951,-183.05827954,0.00040599,30]
[312582952,1706027439961,-150.0,0.000406,30]
[312582953,1706027439970,-150.98638473,0.00040625,30]
[312582954,1706027439980,-50000.0,0.00040716,7]
[312582955,1706027439989,-166.9291756,0.00040733,30]
[312582956,1706027440002,-150.98638473,0.00040743,30]
[312582957,1706027440015,-154.99418601,0.00040769,30]
[312582958,1706027440024,-150.0,0.000408,30]
[312582959,1706027440034,-154.99418601,0.00040884,30]
[312582960,1706027440046,-154.99418601,0.00040905,30]
[312582961,1706027440055,-274.30742242,0.00040993,30]
[312582962,1706027440064,-38635.00137162,0.00040995,5]
[312582963,1706027440074,-151.0,0.00040999,2]
[312582964,1706027440083,-151.0,0.00040999,2]
[312582965,1706027440094,-151.0,0.00040999,2]
[312582966,1706027440103,-500.0,0.00040999,30]
[312582967,1706027440112,-500.0,0.00040999,30]
[312582968,1706027440122,-500.0,0.00040999,30]
[312582969,1706027440131,-500.0,0.00040999,30]
[312582970,1706027440140,-500.0,0.00040999,30]
[312582971,1706027440150,-500.0,0.00040999,30]
[312582972,1706027440159,-500.0,0.00040999,30]
[312582973,1706027440169,-500.0,0.00040999,30]
[312582974,1706027440178,-500.0,0.00040999,30]
[312582975,1706027440189,-500.0,0.00040999,30]
[312582976,1706027440198,-500.0,0.00040999,30]
[312582977,1706027440208,-500.0,0.00040999,30]
[312582978,1706027440217,-500.0,0.00040999,30]
[312582979,1706027440227,-500.0,0.00040999,30]
[312582980,1706027440236,-500.0,0.00040999,30]
[312582981,1706027440246,-500.0,0.00040999,30]
[312582982,1706027440256,-500.0,0.00040999,30]
[312582983,1706027440265,-500.0,0.00040999,30]